fUSD/lending_fUSD_20240425
["ID","MTS","AMOUNT","RATE_DAILY","PERIOD"]
[323540958,1714079453419,-500.0,0.00011232,2]
[323540959,1714079453429,-500.0,0.00011232,2]
[323540960,1714079453439,-500.0,0.00011232,2]
[323540961,1714079453449,-500.0,0.00011232,2]
[323540962,1714079453459,-505.84627064,0.00011232,2]
[323540963,1714079453468,-500.0,0.00011232,2]
[323540964,1714079453477,-500.0,0.00011232,2]
[323540965,1714079453487,-500.0,0.00011232,2]
[323540966,1714079453497,-500.0,0.00011232,2]
[323540967,1714079453506,-500.0,0.00011232,2]
[323540968,1714079453516,-513.31,0.00011232,2]
[323540969,1714079453526,-500.0,0.00011232,2]
[323540970,1714079453536,-500.0,0.00011232,2]
[323540971,1714079453545,-500.0,0.00011232,2]
[323540972,1714079453556,-500.0,0.00011232,2]
[323540973,1714079453568,-500.0,0.00011232,2]
[323540974,1714079453578,-500.0,0.00011232,2]
[323540975,1714079453590,-503.63610716,0.00011232,2]
[323540976,1714079453601,-500.0,0.00011232,2]
[323540977,1714079453611,-510.33198324,0.00011232,2]
[323540978,1714079453621,-500.0,0.00011232,2]
[323540979,1714079453630,-1663.5,0.00011232,2]
[323540980,1714079453639,-500.0,0.00011232,2]
[323540981,1714079453651,-500.0,0.00011232,2]
[323540982,1714079453661,-500.0,0.00011232,2]
[323540983,1714079453671,-500.0,0.00011232,2]
[323540984,1714079453680,-501.920066,0.00011232,2]
[323540985,1714079453690,-522.96624578,0.00011232,2]
[323540986,1714079453701,-500.0,0.00011232,2]
[323540987,1714079453711,-224.11,0.00011232,2]
[323540988,1714079453721,-500.0,0.00011232,2]
[323540989,1714079453730,-500.0,0.00011232,2]
[323540990,1714079453739,-500.0,0.00011232,2]
[323540991,1714079453748,-502.06113389,0.00011232,2]
[323540992,1714079453758,-510.76883437,0.00011232,2]
[323540993,1714079453767,-573.57,0.00011232,2]
[323540994,1714079453776,-500.0,0.00011232,2]
[323540995,1714079453786,-500.0,0.00011232,2]
[323540996,1714079453796,-504.82718286,0.00011232,2]
[323540997,1714079453805,-500.0,0.00011232,2]
[323540998,1714079453814,-500.0,0.00011232,2]
[323540999,1714079453824,-618.21,0.00011232,2]
[323541000,1714079453835,-500.0,0.00011232,2]
[323541001,1714079453844,-500.0,0.00011232,2]
[323541002,1714079453856,-500.0,0.00011232,2]
[323541003,1714079453867,-500.0,0.00011232,2]
[323541004,1714079453876,-2829.62,0.00011232,2]
[323541005,1714079453886,-500.0,0.00011232,2]
[323541006,1714079453895,-500.0,0.00011232,2]
[323541007,1714079453905,-500.0,0.00011232,2]
[323541008,1714079453914,-500.0,0.00011232,2]
[323541009,1714079453924,-744.23,0.00011232,2]
[323541010,1714079453934,-775.07,0.00011232,2]
[323541011,1714079453944,-1273.87,0.00011232,2]
[323541012,1714079453954,-500.0,0.00011232,2]
[323541013,1714079453964,-500.0,0.00011232,2]
[323541014,1714079453973,-500.0,0.00011232,2]
[323541015,1714079453983,-500.0,0.00011232,2]
[323541016,1714079453993,-500.0,0.00011232,2]
[323541017,1714079454003,-500.0,0.00011232,2]
[323541018,1714079454013,-508.38147202,0.00011232,2]
[323541019,1714079454022,-500.0,0.00011232,2]
[323541020,1714079454031,-504.03954661,0.00011232,2]
[323541021,1714079454040,-500.0,0.00011232,2]
[323541022,1714079454050,-500.0,0.00011232,2]
[323541023,1714079454060,-500.0,0.00011232,2]
[323541024,1714079454070,-500.0,0.00011232,2]
[323541025,1714079454079,-500.0,0.00011232,2]
[323541026,1714079454088,-500.0,0.00011232,2]
[323541027,1714079454097,-500.0,0.00011232,2]
[323541028,1714079454106,-500.0,0.00011232,2]
[323541029,1714079454116,-275.03833205,0.00011232,2]
[323541030,1714079454125,-500.0,0.00011232,2]
[323541031,1714079454134,-500.0,0.00011232,2]
[323541032,1714079454144,-500.0,0.00011232,2]
[323541033,1714079454154,-500.0,0.00011232,2]
[323541034,1714079454163,-222.99303092,0.00011232,2]
[323541035,1714079454172,-1499.73,0.00011232,2]
[323541036,1714079454181,-631.45562151,0.00011232,2]
[323541037,1714079454190,-500.0,0.00011232,2]
[323541038,1714079454199,-500.0,0.00011232,2]
[323541039,1714079454208,-500.0,0.00011232,2]
[323541040,1714079454218,-737.46,0.00011232,2]
[323541041,1714079454227,-500.0,0.00011232,2]
[323541042,1714079454237,-500.0,0.00011232,2]
[323541043,1714079454245,-500.0,0.00011232,2]
[323541044,1714079454255,-500.0,0.00011232,2]
[323541045,1714079454264,-500.0,0.00011232,2]
[323541046,1714079454274,-500.0,0.00011232,2]
[323541047,1714079454283,-500.0,0.00011232,2]
[323541048,1714079454293,-502.42176914,0.00011232,2]
[323541049,1714079454304,-500.0,0.00011232,2]
[323541050,1714079454314,-500.0,0.00011232,2]
[323541051,1714079454326,-636.01,0.00011232,2]
[323541052,1714079454335,-500.0,0.00011232,2]
[323541053,1714079454345,-500.0,0.00011232,2]
[323541054,1714079454513,-1519.53,0.00011232,2]
[323541055,1714079454525,-500.0,0.00011232,2]
[323541056,1714079454535,-500.0,0.00011232,2]
[323541057,1714079454545,-500.0,0.00011232,2]
[323541058,1714079454555,-500.0,0.00011232,2]
[323541059,1714079454569,-500.0,0.00011232,2]
[323541060,1714079454578,-500.0,0.00011232,2]
[323541061,1714079454587,-500.0,0.00011232,2]
[323541062,1714079454596,-500.0,0.00011232,2]
[323541063,1714079454605,-500.0,0.00011232,2]
[323541064,1714079454615,-500.0,0.00011232,2]
[323541065,1714079454623,-500.0,0.00011232,2]
[323541066,1714079454632,-725.55,0.00011232,2]
[323541067,1714079454642,-500.0,0.00011232,2]
[323541068,1714079454651,-500.0,0.00011232,2]
[323541069,1714079454662,-500.0,0.00011232,2]
[323541070,1714079454670,-500.0,0.00011232,2]
[323541071,1714079454679,-511.13,0.00011232,2]
[323541072,1714079454689,-500.0,0.00011232,2]
[323541073,1714079454698,-503.01747096,0.00011232,2]
[323541074,1714079454706,-500.0,0.00011232,2]
[323541075,1714079454716,-500.0,0.00011232,2]
[323541076,1714079454725,-500.0,0.00011232,2]
[323541077,1714079454736,-500.0,0.00011232,2]
[323541078,1714079454745,-503.05040795,0.00011232,2]
[323541079,1714079454754,-500.0,0.00011232,2]
[323541080,1714079454763,-500.0,0.00011232,2]
[323541081,1714079454773,-787.58,0.00011232,2]
[323541082,1714079454782,-514.34474077,0.00011232,2]
[323541083,1714079454791,-500.0,0.00011232,2]
[323541084,1714079454800,-500.0,0.00011232,2]
[323541085,1714079454810,-500.0,0.00011232,2]
[323541086,1714079454820,-500.0,0.00011232,2]
[323541087,1714079454829,-500.0,0.00011232,2]
[323541088,1714079454838,-150.0,0.00011232,2]
[323541089,1714079454848,-500.0,0.00011232,2]
[323541090,1714079454857,-500.0,0.00011232,2]
[323541091,1714079454866,-500.0,0.00011232,2]
[323541092,1714079454875,-530.90379613,0.00011232,2]
[323541093,1714079454885,-500.0,0.00011232,2]
[323541094,1714079454894,-500.0,0.00011232,2]
[323541095,1714079454903,-500.0,0.00011232,2]
[323541096,1714079454912,-500.0,0.00011232,2]
[323541097,1714079454922,-572.21988631,0.00011232,2]
[323541098,1714079454931,-500.0,0.00011232,2]
[323541099,1714079454940,-500.0,0.00011232,2]
[323541100,1714079454950,-500.0,0.00011232,2]
[323541101,1714079454959,-500.0,0.00011232,2]
[323541102,1714079454968,-500.0,0.00011232,2]
[323541103,1714079454977,-500.0,0.00011232,2]
[323541104,1714079454986,-500.0,0.00011232,2]
[323541105,1714079454995,-504.92681163,0.00011232,2]
[323541106,1714079455005,-500.0,0.00011232,2]
[323541107,1714079455014,-331.39134789,0.00011232,2]
[323541108,1714079455024,-500.0,0.00011232,2]
[323541109,1714079455035,-500.0,0.00011232,2]
[323541110,1714079455044,-500.0,0.00011232,2]
[323541111,1714079455054,-500.0,0.00011232,2]
[323541112,1714079455063,-500.0,0.00011232,2]
[323541113,1714079455077,-175.31783392,0.00011232,2]
[323541114,1714079455087,-500.0,0.00011232,2]
[323541115,1714079455096,-500.0,0.00011232,2]
[323541116,1714079455106,-500.0,0.00011232,2]
[323541117,1714079455116,-500.0,0.00011232,2]
[323541118,1714079455125,-500.0,0.00011232,2]
[323541119,1714079455135,-532.07,0.00011232,2]
[323541120,1714079455147,-500.0,0.00011232,2]
[323541121,1714079455157,-500.0,0.00011232,2]
[323541122,1714079455166,-500.0,0.00011232,2]
[323541123,1714079455176,-500.0,0.00011232,2]
[323541124,1714079455186,-500.0,0.00011232,2]
[323541125,1714079455195,-500.0,0.00011232,2]
[323541126,1714079455204,-500.0,0.00011232,2]
[323541127,1714079455213,-561.05,0.00011232,2]
[323541128,1714079455225,-500.0,0.00011232,2]
[323541129,1714079455236,-500.0,0.00011232,2]
[323541130,1714079455247,-500.0,0.00011232,2]
[323541131,1714079455258,-500.0,0.00011232,2]
[323541132,1714079455267,-500.0,0.00011232,2]
[323541133,1714079455276,-500.0,0.00011232,2]
[323541134,1714079455284,-500.0,0.00011232,2]
[323541135,1714079455293,-500.0,0.00011232,2]
[323541136,1714079455303,-1482.41,0.00011232,2]
[323541137,1714079455312,-500.0,0.00011232,2]
[323541138,1714079455325,-500.0,0.00011232,2]
[323541139,1714079455335,-500.0,0.00011232,2]
[323541140,1714079455344,-500.0,0.00011232,2]
[323541141,1714079455353,-500.0,0.00011232,2]
[323541142,1714079455363,-500.0,0.00011232,2]
[323541143,1714079455372,-637.59101019,0.00011232,2]
[323541144,1714079455381,-500.0,0.00011232,2]
[323541145,1714079455390,-500.0,0.00011232,2]
[323541146,1714079455399,-500.0,0.00011232,2]
[323541147,1714079455409,-500.0,0.00011232,2]
[323541148,1714079455418,-500.0,0.00011232,2]
[323541149,1714079455427,-500.0,0.00011232,2]
[323541150,1714079455437,-516.98927791,0.00011232,2]
[323541151,1714079455446,-500.0,0.00011232,2]
[323541152,1714079455455,-500.0,0.00011232,2]
[323541153,1714079455464,-500.0,0.00011232,2]
[323541154,1714079455473,-500.0,0.00011232,2]
[323541155,1714079455482,-157.87086375,0.00011232,2]
[323541156,1714079455492,-500.0,0.00011232,2]
[323541157,1714079455501,-508.89328352,0.00011232,2]
[323541158,1714079455510,-501.1578786,0.00011232,2]
[323541159,1714079455520,-505.43839281,0.00011232,2]
[323541160,1714079455528,-500.0,0.00011232,2]
[323541161,1714079455537,-500.0,0.00011232,2]
[323541162,1714079455547,-433.02588302,0.00011232,2]
[323541163,1714079455556,-500.0,0.00011232,2]
[323541164,1714079455565,-500.0,0.00011232,2]
[323541165,1714079455577,-285.34,0.00011232,2]
[323541166,1714079455587,-500.0,0.00011232,2]
[323541167,1714079455596,-500.0,0.00011232,2]
[323541168,1714079455605,-500.0,0.00011232,2]
[323541169,1714079455614,-500.0,0.00011232,2]
[323541170,1714079455623,-500.0,0.00011232,2]
[323541171,1714079455633,-500.0,0.00011232,2]
[323541172,1714079455641,-406.33333049,0.00011232,2]
[323541173,1714079455650,-500.0,0.00011232,2]
[323541174,1714079455660,-500.0,0.00011232,2]
[323541175,1714079455669,-500.0,0.00011232,2]
[323541176,1714079455678,-500.0,0.00011232,2]
[323541177,1714079455687,-500.0,0.00011232,2]
[323541178,1714079455697,-500.0,0.00011232,2]
[323541179,1714079455706,-500.0,0.00011232,2]
[323541180,1714079455715,-500.0,0.00011232,2]
[323541181,1714079455724,-500.0,0.00011232,2]
[323541182,1714079455733,-500.0,0.00011232,2]
[323541183,1714079455742,-500.0,0.00011232,2]
[323541184,1714079455752,-500.0,0.00011232,2]
[323541185,1714079455761,-500.0,0.00011232,2]
[323541186,1714079455771,-501.53910829,0.00011232,2]
[323541187,1714079455780,-500.0,0.00011232,2]
[323541188,1714079455789,-500.0,0.00011232,2]
[323541189,1714079455798,-500.0,0.00011232,2]
[323541190,1714079455807,-500.0,0.00011232,2]
[323541191,1714079455817,-500.0,0.00011232,2]
[323541192,1714079455827,-500.0,0.00011232,2]
[323541193,1714079455836,-559.5264426,0.00011232,2]
[323541194,1714079455846,-500.0,0.00011232,2]
[323541195,1714079455855,-566.21,0.00011232,2]
[323541196,1714079455864,-502.05778128,0.00011232,2]
[323541197,1714079455873,-500.0,0.00011232,2]
[323541198,1714079455882,-500.0,0.00011232,2]
[323541199,1714079455891,-500.0,0.00011232,2]
[323541200,1714079455900,-500.0,0.00011232,2]
[323541201,1714079455910,-503.26432233,0.00011232,2]
[323541202,1714079455919,-632.84,0.00011232,2]
[323541203,1714079455928,-500.0,0.00011232,2]
[323541204,1714079455937,-500.0,0.00011232,2]
[323541205,1714079455947,-500.0,0.00011232,2]
[323541206,1714079455956,-501.25420868,0.00011232,2]
[323541207,1714079455965,-500.0,0.00011232,2]
[323541208,1714079455974,-615.99,0.00011232,2]
[323541209,1714079455983,-500.0,0.00011232,2]
[323541210,1714079455992,-1365.62,0.00011232,2]
[323541211,1714079456001,-500.0,0.00011232,2]
[323541212,1714079456011,-500.0,0.00011232,2]
[323541213,1714079456020,-501.01367022,0.00011232,2]
[323541214,1714079456029,-500.0,0.00011232,2]
[323541215,1714079456038,-500.0,0.00011232,2]
[323541216,1714079456047,-500.64091805,0.00011232,2]
[323541217,1714079456057,-500.0,0.00011232,2]
[323541218,1714079456066,-500.0,0.00011232,2]
[323541219,1714079456077,-202.16837205,0.00011232,2]
[323541220,1714079456086,-1378.89,0.00011232,2]
[323541221,1714079456095,-502.01349116,0.00011232,2]
[323541222,1714079456104,-1472.38,0.00011232,2]
[323541223,1714079456113,-1761.36,0.00011232,2]
[323541224,1714079456123,-646.56,0.00011232,2]
[323541225,1714079456132,-500.0,0.00011232,2]
[323541226,1714079456144,-500.0,0.00011232,2]
[323541227,1714079456154,-252.30284344,0.00011232,2]
[323541228,1714079456163,-501.19074427,0.00011232,2]
[323541229,1714079456172,-500.0,0.00011232,2]
[323541230,1714079456181,-500.0,0.00011232,2]
[323541231,1714079456190,-863.61,0.00011232,2]
[323541232,1714079456199,-151.0,0.00011232,2]
[323541233,1714079456208,-500.0,0.00011232,2]
[323541234,1714079456218,-717.19,0.00011232,2]
[323541235,1714079456229,-500.0,0.00011232,2]
[323541236,1714079456238,-1609.92,0.00011232,2]
[323541237,1714079456248,-923.79,0.00011232,2]
[323541238,1714079456256,-500.0,0.00011232,2]
[323541239,1714079456265,-529.96706659,0.00011232,2]
[323541240,1714079456274,-500.0,0.00011232,2]
[323541241,1714079456283,-500.0,0.00011232,2]
[323541242,1714079456292,-168.63095368,0.00011232,2]
[323541243,1714079456301,-500.0,0.00011232,2]
[323541244,1714079456310,-500.71364918,0.00011232,2]
[323541245,1714079456320,-500.0,0.00011232,2]
[323541246,1714079456329,-176.58699204,0.00011232,2]
[323541247,1714079456339,-500.0,0.00011232,2]
[323541248,1714079456349,-500.0,0.00011232,2]
[323541249,1714079456358,-500.0,0.00011232,2]
[323541250,1714079456367,-500.0,0.00011232,2]
[323541251,1714079456377,-7355.74,0.00011232,2]
[323541252,1714079456386,-500.0,0.00011232,2]
[323541253,1714079456395,-580.14669754,0.00011232,2]
[323541254,1714079456404,-500.0,0.00011232,2]
[323541255,1714079456413,-500.0,0.00011232,2]
[323541256,1714079456422,-9420.93,0.00011232,2]
[323541257,1714079456432,-500.0,0.00011232,2]
[323541258,1714079456441,-500.0,0.00011232,2]
[323541259,1714079456452,-500.0,0.00011232,2]
[323541260,1714079456462,-504.49335913,0.00011232,2]
[323541261,1714079456472,-500.0,0.00011232,2]
[323541262,1714079456481,-577.19,0.00011232,2]
[323541263,1714079456491,-500.0,0.00011232,2]
[323541264,1714079456500,-500.0,0.00011232,2]
[323541265,1714079456509,-500.0,0.00011232,2]
[323541266,1714079456518,-4256.45,0.00011232,2]
[323541267,1714079456527,-500.0,0.00011232,2]
[323541268,1714079456536,-500.0,0.00011232,2]
[323541269,1714079456545,-500.0,0.00011232,2]
[323541270,1714079456555,-501.6464326,0.00011232,2]
[323541271,1714079456564,-500.0,0.00011232,2]
[323541272,1714079456574,-500.0,0.00011232,2]
[323541273,1714079456583,-500.0,0.00011232,2]
[323541274,1714079456593,-24807.6,0.00011232,2]
[323541275,1714079456602,-1271.39,0.00011232,2]
[323541276,1714079456611,-1270.84,0.00011232,2]
[323541277,1714079456620,-500.0,0.00011232,2]
[323541278,1714079456629,-601.66198162,0.00011232,2]
[323541279,1714079456638,-611.6,0.00011232,2]
[323541280,1714079456648,-673.09,0.00011232,2]
[323541281,1714079456657,-500.0,0.00011232,2]
[323541282,1714079456666,-2357.01,0.00011232,2]
[323541283,1714079456675,-500.0,0.00011232,2]
[323541284,1714079456684,-500.0,0.00011232,2]
[323541285,1714079456692,-500.0,0.00011232,2]
[323541286,1714079456702,-500.0,0.00011232,2]
[323541287,1714079456710,-500.0,0.00011232,2]
[323541288,1714079456719,-2142.96,0.00011232,2]
[323541289,1714079456728,-1364.4,0.00011232,2]
[323541290,1714079456737,-500.0,0.00011232,2]
[323541291,1714079456746,-500.0,0.00011232,2]
[323541292,1714079456755,-501.33957179,0.00011232,2]
[323541293,1714079456764,-500.0,0.00011232,2]
[323541294,1714079456773,-155.51703767,0.00011232,2]
[323541295,1714079456782,-1778.83,0.00011232,2]
[323541296,1714079456791,-500.0,0.00011232,2]
[323541297,1714079456800,-2501.91,0.00011232,2]
[323541298,1714079456809,-500.0,0.00011232,2]
[323541299,1714079456819,-500.0,0.00011232,2]
[323541300,1714079456828,-500.0,0.00011232,2]
[323541301,1714079456838,-507.32666584,0.00011232,2]
[323541302,1714079456846,-500.0,0.00011232,2]
[323541303,1714079456856,-500.0,0.00011232,2]
[323541304,1714079456865,-500.0,0.00011232,2]
[323541305,1714079456874,-1359.49,0.00011232,2]
[323541306,1714079456883,-500.0,0.00011232,2]
[323541307,1714079456892,-510.00209836,0.00011232,2]
[323541308,1714079456901,-2433.13,0.00011232,2]
[323541309,1714079456910,-2333.65,0.00011232,2]
[323541310,1714079456919,-500.0,0.00011232,2]
[323541311,1714079456928,-500.0,0.00011232,2]
[323541312,1714079456937,-500.0,0.00011232,2]
[323541313,1714079456946,-508.90198079,0.00011232,2]
[323541314,1714079456955,-500.0,0.00011232,2]
[323541315,1714079456964,-500.0,0.00011232,2]
[323541316,1714079456972,-512.06216027,0.00011232,2]
[323541317,1714079456982,-500.0,0.00011232,2]
[323541318,1714079456991,-388.55946281,0.00011232,2]
[323541319,1714079457000,-770.51,0.00011232,2]
[323541320,1714079457153,-500.0,0.00011232,2]
[323541321,1714079457162,-500.0,0.00011232,2]
[323541322,1714079457170,-500.0,0.00011232,2]
[323541323,1714079457179,-3058.28,0.00011232,2]
[323541324,1714079457188,-711.73,0.00011232,2]
[323541325,1714079457197,-575.32809726,0.00011232,2]
[323541326,1714079457206,-500.0,0.00011232,2]
[323541327,1714079457216,-500.0,0.00011232,2]
[323541328,1714079457226,-507.19493994,0.00011232,2]
[323541329,1714079457236,-500.0,0.00011232,2]
[323541330,1714079457245,-500.0,0.00011232,2]
[323541331,1714079457254,-500.0,0.00011232,2]
[323541332,1714079457263,-1470.78,0.00011232,2]
[323541333,1714079457272,-505.11537152,0.00011232,2]
[323541334,1714079457281,-1883.18,0.00011232,2]
[323541335,1714079457290,-500.0,0.00011232,2]
[323541336,1714079457299,-500.0,0.00011232,2]
[323541337,1714079457309,-509.14764831,0.00011232,2]
[323541338,1714079457318,-500.0,0.00011232,2]
[323541339,1714079457327,-500.0,0.00011232,2]
[323541340,1714079457337,-500.0,0.00011232,2]
[323541341,1714079457346,-500.0,0.00011232,2]
[323541342,1714079457355,-500.0,0.00011232,2]
[323541343,1714079457365,-500.0,0.00011232,2]
[323541344,1714079457373,-500.0,0.00011232,2]
[323541345,1714079457383,-500.0,0.00011232,2]
[323541346,1714079457392,-500.0,0.00011232,2]
[323541347,1714079457401,-784.75,0.00011232,2]
[323541348,1714079457410,-500.0,0.00011232,2]
[323541349,1714079457419,-883.8,0.00011232,2]
[323541350,1714079457428,-500.0,0.00011232,2]
[323541351,1714079457437,-892.7,0.00011232,2]
[323541352,1714079457446,-500.0,0.00011232,2]
[323541353,1714079457455,-500.0,0.00011232,2]
[323541354,1714079457465,-500.0,0.00011232,2]
[323541355,1714079457474,-24239.67,0.00011232,2]
[323541356,1714079457483,-500.0,0.00011232,2]
[323541357,1714079457492,-500.0,0.00011232,2]
[323541358,1714079457502,-500.0,0.00011232,2]
[323541359,1714079457510,-1331.03,0.00011232,2]
[323541360,1714079457520,-500.0,0.00011232,2]
[323541361,1714079457528,-500.0,0.00011232,2]
[323541362,1714079457537,-485.67744337,0.00011232,2]
[323541363,1714079457546,-514.68,0.00011232,2]
[323541364,1714079457556,-500.0,0.00011232,2]
[323541365,1714079457564,-1182.4,0.00011232,2]
[323541366,1714079457575,-500.0,0.00011232,2]
[323541367,1714079457583,-1060.67,0.00011232,2]
[323541368,1714079457592,-500.0,0.00011232,2]
[323541369,1714079457602,-1621.03,0.00011232,2]
[323541370,1714079457611,-2281.43,0.00011232,2]
[323541371,1714079457620,-500.0,0.00011232,2]
[323541372,1714079457629,-510.9165463,0.00011232,2]
[323541373,1714079457637,-1355.33,0.00011232,2]
[323541374,1714079457647,-500.0,0.00011232,2]
[323541375,1714079457656,-459.30115,0.00011232,2]
[323541376,1714079457665,-500.0,0.00011232,2]
[323541377,1714079457674,-791.36,0.00011232,2]
[323541378,1714079457682,-1099.83,0.00011232,2]
[323541379,1714079457691,-500.0,0.00011232,2]
[323541380,1714079457700,-500.0,0.00011232,2]
[323541381,1714079457710,-500.0,0.00011232,2]
[323541382,1714079457719,-1498.73,0.00011232,2]
[323541383,1714079457728,-3049.32,0.00011232,2]
[323541384,1714079457737,-459.30115,0.00011232,2]
[323541385,1714079457746,-500.0,0.00011232,2]
[323541386,1714079457755,-500.0,0.00011232,2]
[323541387,1714079457764,-500.0,0.00011232,2]
[323541388,1714079457773,-500.0,0.00011232,2]
[323541389,1714079457782,-2357.14,0.00011232,2]
[323541390,1714079457791,-833.9,0.00011232,2]
[323541391,1714079457800,-500.0,0.00011232,2]
[323541392,1714079457809,-500.0,0.00011232,2]
[323541393,1714079457820,-500.0,0.00011232,2]
[323541394,1714079457829,-477.61792215,0.00011232,2]
[323541395,1714079457837,-852.88,0.00011232,2]
[323541396,1714079457846,-500.0,0.00011232,2]
[323541397,1714079457855,-500.0,0.00011232,2]
[323541398,1714079457865,-500.0,0.00011232,2]
[323541399,1714079457875,-500.0,0.00011232,2]
[323541400,1714079457884,-1372.85,0.00011232,2]
[323541401,1714079457893,-640.73,0.00011232,2]
[323541402,1714079457902,-500.0,0.00011232,2]
[323541403,1714079457911,-500.0,0.00011232,2]
[323541404,1714079457921,-500.0,0.00011232,2]
[323541405,1714079457930,-972.48,0.00011232,2]
[323541406,1714079457939,-759.26,0.00011232,2]
[323541407,1714079457948,-500.0,0.00011232,2]
[323541408,1714079457958,-500.0,0.00011232,2]
[323541409,1714079457967,-500.0,0.00011232,2]
[323541410,1714079457977,-502.36542532,0.00011232,2]
[323541411,1714079457986,-500.0,0.00011232,2]
[323541412,1714079457996,-500.0,0.00011232,2]
[323541413,1714079458006,-984.82,0.00011232,2]
[323541414,1714079458015,-506.65730338,0.00011232,2]
[323541415,1714079458025,-2723.41,0.00011232,2]
[323541416,1714079458035,-500.0,0.00011232,2]
[323541417,1714079458045,-503.18073118,0.00011232,2]
[323541418,1714079458055,-5700.22,0.00011232,2]
[323541419,1714079458065,-500.0,0.00011232,2]
[323541420,1714079458075,-1003.68,0.00011232,2]
[323541421,1714079458085,-1144.78,0.00011232,2]
[323541422,1714079458094,-1711.68,0.00011232,2]
[323541423,1714079458103,-500.0,0.00011232,2]
[323541424,1714079458112,-500.0,0.00011232,2]
[323541425,1714079458122,-500.0,0.00011232,2]
[323541426,1714079458131,-500.0,0.00011232,2]
[323541427,1714079458142,-649.04280312,0.00011232,2]
[323541428,1714079458155,-3553.91,0.00011232,2]
[323541429,1714079458163,-841.83,0.00011232,2]
[323541430,1714079458172,-500.0,0.00011232,2]
[323541431,1714079458181,-1532.05,0.00011232,2]
[323541432,1714079458191,-500.0,0.00011232,2]
[323541433,1714079458200,-500.0,0.00011232,2]
[323541434,1714079458209,-4466.15,0.00011232,2]
[323541435,1714079458219,-4094.61,0.00011232,2]
[323541436,1714079458229,-6226.21,0.00011232,2]
[323541437,1714079458239,-941.66,0.00011232,2]
[323541438,1714079458248,-500.0,0.00011232,2]
[323541439,1714079458258,-500.0,0.00011232,2]
[323541440,1714079458267,-503.55623564,0.00011232,2]
[323541441,1714079458276,-500.0,0.00011232,2]
[323541442,1714079458285,-723.29,0.00011232,2]
[323541443,1714079458294,-500.0,0.00011232,2]
[323541444,1714079458303,-500.0,0.00011232,2]
[323541445,1714079458314,-500.0,0.00011232,2]
[323541446,1714079458325,-500.81687954,0.00011232,2]
[323541447,1714079458333,-500.0,0.00011232,2]
[323541448,1714079458342,-500.0,0.00011232,2]
[323541449,1714079458352,-500.0,0.00011232,2]
[323541450,1714079458361,-931.65,0.00011232,2]
[323541451,1714079458371,-1405.65,0.00011232,2]
[323541452,1714079458380,-1351.72,0.00011232,2]
[323541453,1714079458389,-500.0,0.00011232,2]
[323541454,1714079458398,-585.14,0.00011232,2]
[323541455,1714079458408,-500.0,0.00011232,2]
[323541456,1714079458417,-500.0,0.00011232,2]
[323541457,1714079458427,-528.9,0.00011232,2]